[Event "Titled Tuesday Blitz May 10 Late 2022"]
[White "Clarke, Brandon G I"]
[Black "Souleidis, Georgios"]
[WhiteFideId "400319"]
[BlackFideId "4206827"]
[WhiteElo "2414"]
[BlackElo "2401"]
[Result "1-0"]
[Round "05"]
[TimeControl "180+1"]
[Date "2022.05.10"]
[WhiteClock "0:00:29"]
[BlackClock "0:00:05"]

1. e4 {[%clk 0:03:00]}  e5 {[%clk 0:02:55]} 2. Nf3 {[%clk 0:03:00]}  d6 {[%clk 0:02:53]} 3. d4 {[%clk 0:03:00]}  Bg4 {[%clk 0:02:51]} 4. dxe5 {[%clk 0:03:01]}  Nd7 {[%clk 0:02:51]} 5. exd6 {[%clk 0:02:59]}  Bxd6 {[%clk 0:02:52]} 6. Bd3 {[%clk 0:02:52]}  Qe7 {[%clk 0:02:51]} 7. Be3 {[%clk 0:02:49]}  Ngf6 {[%clk 0:02:48]} 8. Nbd2 {[%clk 0:02:49]}  O-O-O {[%clk 0:02:45]} 9. h3 {[%clk 0:02:49]}  Bh5 {[%clk 0:02:45]} 10. O-O {[%clk 0:02:45]}  Ne5 {[%clk 0:02:35]} 11. Re1 {[%clk 0:02:41]}  Nxf3+ {[%clk 0:02:21]} 12. Nxf3 {[%clk 0:02:42]}  Nxe4 {[%clk 0:02:02]} 13. Bg5 {[%clk 0:02:05]}  Qxg5 {[%clk 0:01:31]} 14. Nxg5 {[%clk 0:02:04]}  Bxd1 {[%clk 0:01:31]} 15. Nxf7 {[%clk 0:02:05]}  Bh5 {[%clk 0:00:37]} 16. Nxd8 {[%clk 0:02:05]}  Nxf2 {[%clk 0:00:32]} 17. Kxf2 {[%clk 0:01:58]}  Kxd8 {[%clk 0:00:31]} 18. g4 {[%clk 0:01:56]}  Bf7 {[%clk 0:00:30]} 19. Be4 {[%clk 0:01:53]}  h5 {[%clk 0:00:29]} 20. g5 {[%clk 0:01:51]}  h4 {[%clk 0:00:28]} 21. Bxb7 {[%clk 0:01:47]}  Bg3+ {[%clk 0:00:27]} 22. Kf3 {[%clk 0:01:45]}  Bh5+ {[%clk 0:00:22]} 23. Kg2 {[%clk 0:01:42]}  Bxe1 {[%clk 0:00:22]} 24. Rxe1 {[%clk 0:01:43]}  Re8 {[%clk 0:00:11]} 25. Rxe8+ {[%clk 0:01:42]}  Kxe8 {[%clk 0:00:12]} 26. Bd5 {[%clk 0:01:36]}  Ke7 {[%clk 0:00:12]} 27. Kf2 {[%clk 0:01:32]}  Kd6 {[%clk 0:00:13]} 28. Bf3 {[%clk 0:01:32]}  Bg6 {[%clk 0:00:13]} 29. c3 {[%clk 0:01:30]}  Bf5 {[%clk 0:00:13]} 30. Bg2 {[%clk 0:01:29]}  Ke5 {[%clk 0:00:13]} 31. Ke3 {[%clk 0:01:30]}  Bb1 {[%clk 0:00:12]} 32. a3 {[%clk 0:01:29]}  Ba2 {[%clk 0:00:13]} 33. Bf1 {[%clk 0:01:20]}  Kf5 {[%clk 0:00:11]} 34. c4 {[%clk 0:01:16]}  Kxg5 {[%clk 0:00:12]} 35. b4 {[%clk 0:01:05]}  Bb1 {[%clk 0:00:11]} 36. a4 {[%clk 0:01:05]}  Kf6 {[%clk 0:00:11]} 37. Kd4 {[%clk 0:01:02]}  Ke7 {[%clk 0:00:09]} 38. Kc5 {[%clk 0:01:02]}  Be4 {[%clk 0:00:09]} 39. Kd4 {[%clk 0:01:00]}  Bf5 {[%clk 0:00:08]} 40. Ke5 {[%clk 0:01:01]}  Bd7 {[%clk 0:00:08]} 41. b5 {[%clk 0:01:00]}  g5 {[%clk 0:00:07]} 42. a5 {[%clk 0:00:58]}  g4 {[%clk 0:00:07]} 43. hxg4 {[%clk 0:00:59]}  Bxg4 {[%clk 0:00:08]} 44. c5 {[%clk 0:00:58]}  Kd8 {[%clk 0:00:06]} 45. Bg2 {[%clk 0:00:54]}  h3 {[%clk 0:00:06]} 46. Bh1 {[%clk 0:00:53]}  Bc8 {[%clk 0:00:04]} 47. Kd4 {[%clk 0:00:49]}  Ke7 {[%clk 0:00:04]} 48. Bc6 {[%clk 0:00:43]}  h2 {[%clk 0:00:03]} 49. Bh1 {[%clk 0:00:43]}  Kf6 {[%clk 0:00:03]} 50. Kd5 {[%clk 0:00:42]}  Ke7 {[%clk 0:00:03]} 51. Kc6 {[%clk 0:00:42]}  Kd8 {[%clk 0:00:04]} 52. a6 {[%clk 0:00:34]}  Bd7+ {[%clk 0:00:03]} 53. Kb7 {[%clk 0:00:35]}  Bxb5 {[%clk 0:00:03]} 54. Kxa7 {[%clk 0:00:36]}  Kd7 {[%clk 0:00:04]} 55. Kb7 {[%clk 0:00:35]}  c6 {[%clk 0:00:03]} 56. a7 {[%clk 0:00:35]}  Bc4 {[%clk 0:00:04]} 57. Bxc6+ {[%clk 0:00:34]}  Ke6 {[%clk 0:00:04]} 58. Bh1 {[%clk 0:00:34]}  Bd5+ {[%clk 0:00:05]} 59. Bxd5+ {[%clk 0:00:29]}  Kxd5 {[%clk 0:00:06]} 60. a8=Q {[%clk 0:00:29]}  h1=Q {[%clk 0:00:05]} 61. Kb8+ {[%clk 0:00:29]} 1-0


[Site "https://www.chess.com"]

[Event "Titled Tuesday Blitz May 10 Late 2022"]
[White "Daggupati, Balaji"]
[Black "Girsh, Daniel"]
[WhiteFideId "2090759"]
[BlackFideId "30949190"]
[WhiteElo "2634"]
[BlackElo "2459"]
[Result "1-0"]
[Round "05"]
[TimeControl "180+1"]
[Date "2022.05.11"]
[WhiteClock "0:01:47"]
[BlackClock "0:00:21"]

1. e4 {[%clk 0:03:00]}  c5 {[%clk 0:02:59]} 2. Nf3 {[%clk 0:03:00]}  d6 {[%clk 0:03:00]} 3. d4 {[%clk 0:03:00]}  cxd4 {[%clk 0:03:00]} 4. Nxd4 {[%clk 0:03:01]}  Nf6 {[%clk 0:03:00]} 5. Nc3 {[%clk 0:03:02]}  a6 {[%clk 0:03:00]} 6. Qe2 {[%clk 0:03:03]}  e5 {[%clk 0:02:59]} 7. Nf5 {[%clk 0:03:03]}  Bxf5 {[%clk 0:02:56]} 8. exf5 {[%clk 0:03:04]}  Be7 {[%clk 0:02:55]} 9. g4 {[%clk 0:03:02]}  h6 {[%clk 0:02:51]} 10. Be3 {[%clk 0:03:02]}  d5 {[%clk 0:02:47]} 11. O-O-O {[%clk 0:03:01]}  d4 {[%clk 0:02:47]} 12. f4 {[%clk 0:03:00]}  Qa5 {[%clk 0:02:18]} 13. fxe5 {[%clk 0:02:59]}  dxc3 {[%clk 0:02:17]} 14. exf6 {[%clk 0:02:59]}  cxb2+ {[%clk 0:01:43]} 15. Kb1 {[%clk 0:02:58]}  gxf6 {[%clk 0:01:42]} 16. Bg2 {[%clk 0:02:47]}  Nc6 {[%clk 0:01:40]} 17. Bxc6+ {[%clk 0:02:47]}  bxc6 {[%clk 0:01:35]} 18. Rhe1 {[%clk 0:02:39]}  O-O {[%clk 0:01:17]} 19. Bxh6 {[%clk 0:02:34]}  Bb4 {[%clk 0:01:17]} 20. Bxf8 {[%clk 0:02:22]}  Bxe1 {[%clk 0:01:15]} 21. Qxe1 {[%clk 0:02:23]}  Qxe1 {[%clk 0:01:09]} 22. Rxe1 {[%clk 0:02:24]}  Kxf8 {[%clk 0:01:02]} 23. Kxb2 {[%clk 0:02:25]}  Kg7 {[%clk 0:00:58]} 24. Re3 {[%clk 0:02:24]}  Kh6 {[%clk 0:00:53]} 25. h4 {[%clk 0:02:00]}  Rb8+ {[%clk 0:00:53]} 26. Kc3 {[%clk 0:01:58]}  Rb1 {[%clk 0:00:53]} 27. Re7 {[%clk 0:01:57]}  Kg7 {[%clk 0:00:44]} 28. g5 {[%clk 0:01:57]}  fxg5 {[%clk 0:00:42]} 29. hxg5 {[%clk 0:01:58]}  Kf8 {[%clk 0:00:29]} 30. Ra7 {[%clk 0:01:57]}  Rg1 {[%clk 0:00:17]} 31. Rxa6 {[%clk 0:01:53]}  Rxg5 {[%clk 0:00:16]} 32. f6 {[%clk 0:01:53]}  Rc5+ {[%clk 0:00:15]} 33. Kb4 {[%clk 0:01:50]}  Rb5+ {[%clk 0:00:15]} 34. Kc4 {[%clk 0:01:51]}  Kg8 {[%clk 0:00:15]} 35. a4 {[%clk 0:01:48]}  Rb2 {[%clk 0:00:13]} 36. Kc3 {[%clk 0:01:48]}  Rb1 {[%clk 0:00:11]} 37. Rxc6 {[%clk 0:01:48]}  Ra1 {[%clk 0:00:12]} 38. Kb4 {[%clk 0:01:46]}  Kh7 {[%clk 0:00:13]} 39. a5 {[%clk 0:01:45]}  Kg6 {[%clk 0:00:14]} 40. a6 {[%clk 0:01:45]}  Rb1+ {[%clk 0:00:14]} 41. Kc5 {[%clk 0:01:45]}  Ra1 {[%clk 0:00:15]} 42. Kb6 {[%clk 0:01:45]}  Rb1+ {[%clk 0:00:15]} 43. Kc7 {[%clk 0:01:45]}  Ra1 {[%clk 0:00:16]} 44. Kb7 {[%clk 0:01:45]}  Rb1+ {[%clk 0:00:17]} 45. Rb6 {[%clk 0:01:46]}  Ra1 {[%clk 0:00:18]} 46. a7 {[%clk 0:01:46]}  Kf5 {[%clk 0:00:18]} 47. a8=Q {[%clk 0:01:45]}  Rxa8 {[%clk 0:00:18]} 48. Kxa8 {[%clk 0:01:45]}  Ke5 {[%clk 0:00:19]} 49. c4 {[%clk 0:01:44]}  Kd4 {[%clk 0:00:20]} 50. Rb7 {[%clk 0:01:45]}  Kxc4 {[%clk 0:00:20]} 51. Rxf7 {[%clk 0:01:46]}  Kd5 {[%clk 0:00:21]} 52. Re7 {[%clk 0:01:46]}  Kd6 {[%clk 0:00:21]} 53. Re1 {[%clk 0:01:47]} 1-0


[Site "https://www.chess.com"]

[Event "Titled Tuesday Blitz May 10 Late 2022"]
[White "Della Morte, German"]
[Black "Ladan, Nicholas"]
[WhiteFideId "113522"]
[BlackFideId "30918855"]
[WhiteElo "2363"]
[BlackElo "2167"]
[Result "1-0"]
[Round "05"]
[TimeControl "180+1"]
[Date "2022.05.11"]
[WhiteClock "0:00:20"]
[BlackClock "0:00:34"]

1. e4 {[%clk 0:02:55]}  e5 {[%clk 0:02:59]} 2. Nf3 {[%clk 0:02:55]}  Nc6 {[%clk 0:03:00]} 3. Bc4 {[%clk 0:02:55]}  Nf6 {[%clk 0:02:59]} 4. Ng5 {[%clk 0:02:56]}  d5 {[%clk 0:02:59]} 5. exd5 {[%clk 0:02:57]}  Na5 {[%clk 0:03:00]} 6. Bb5+ {[%clk 0:02:57]}  c6 {[%clk 0:03:00]} 7. dxc6 {[%clk 0:02:58]}  bxc6 {[%clk 0:03:01]} 8. Bd3 {[%clk 0:02:58]}  Nd5 {[%clk 0:02:59]} 9. h4 {[%clk 0:02:58]}  Qc7 {[%clk 0:02:59]} 10. O-O {[%clk 0:02:52]}  h6 {[%clk 0:02:53]} 11. Ne4 {[%clk 0:02:45]}  Be7 {[%clk 0:02:48]} 12. g3 {[%clk 0:02:29]}  O-O {[%clk 0:02:44]} 13. Be2 {[%clk 0:02:04]}  f5 {[%clk 0:02:34]} 14. Nec3 {[%clk 0:02:04]}  f4 {[%clk 0:02:33]} 15. d3 {[%clk 0:01:49]}  Bh3 {[%clk 0:02:27]} 16. Re1 {[%clk 0:01:49]}  fxg3 {[%clk 0:02:02]} 17. fxg3 {[%clk 0:01:49]}  Bc5+ {[%clk 0:02:02]} 18. Kh2 {[%clk 0:01:43]}  Qd7 {[%clk 0:01:43]} 19. Ne4 {[%clk 0:01:41]}  Ne3 {[%clk 0:01:29]} 20. Bxe3 {[%clk 0:01:02]}  Bxe3 {[%clk 0:01:30]} 21. Nbc3 {[%clk 0:00:58]}  Rf7 {[%clk 0:01:22]} 22. Bh5 {[%clk 0:00:52]}  Bd4 {[%clk 0:01:09]} 23. Bxf7+ {[%clk 0:00:37]}  Kxf7 {[%clk 0:01:09]} 24. Qf3+ {[%clk 0:00:29]}  Kg8 {[%clk 0:01:09]} 25. Rf1 {[%clk 0:00:23]}  Bxf1 {[%clk 0:01:08]} 26. Rxf1 {[%clk 0:00:24]}  Nb7 {[%clk 0:01:01]} 27. Qf5 {[%clk 0:00:22]}  Qe7 {[%clk 0:00:38]} 28. Qg6 {[%clk 0:00:22]}  Nd8 {[%clk 0:00:34]} 29. Nf6+ {[%clk 0:00:20]} 1-0


[Site "https://www.chess.com"]

[Event "Titled Tuesday Blitz May 10 Late 2022"]
[White "Djokic, Mihailo"]
[Black "Bernal Moro, Luis Javier"]
[WhiteFideId "976440"]
[BlackFideId "2200236"]
[WhiteElo "2202"]
[BlackElo "2373"]
[Result "1-0"]
[Round "05"]
[TimeControl "180+1"]
[Date "2022.05.11"]
[WhiteClock "0:01:08"]
[BlackClock "0:00:13"]

1. e4 {[%clk 0:03:00]}  c5 {[%clk 0:02:59]} 2. Nf3 {[%clk 0:03:00]}  e6 {[%clk 0:02:59]} 3. d4 {[%clk 0:03:00]}  cxd4 {[%clk 0:03:00]} 4. Nxd4 {[%clk 0:03:01]}  Nc6 {[%clk 0:03:00]} 5. Nc3 {[%clk 0:02:58]}  a6 {[%clk 0:03:01]} 6. Be2 {[%clk 0:02:58]}  Nge7 {[%clk 0:02:59]} 7. O-O {[%clk 0:02:57]}  Nxd4 {[%clk 0:02:59]} 8. Qxd4 {[%clk 0:02:58]}  Nc6 {[%clk 0:02:59]} 9. Qe3 {[%clk 0:02:59]}  b5 {[%clk 0:02:55]} 10. a4 {[%clk 0:02:56]}  b4 {[%clk 0:02:54]} 11. Nd5 {[%clk 0:02:55]}  Rb8 {[%clk 0:02:09]} 12. b3 {[%clk 0:02:51]}  Bd6 {[%clk 0:02:04]} 13. Nf4 {[%clk 0:02:08]}  Be5 {[%clk 0:02:01]} 14. Rb1 {[%clk 0:02:07]}  O-O {[%clk 0:01:52]} 15. Rd1 {[%clk 0:02:02]}  Qf6 {[%clk 0:01:36]} 16. Nh5 {[%clk 0:01:54]}  Qg6 {[%clk 0:01:24]} 17. Ng3 {[%clk 0:01:50]}  Qf6 {[%clk 0:00:50]} 18. Nh5 {[%clk 0:01:49]}  Qg6 {[%clk 0:00:50]} 19. f4 {[%clk 0:01:49]}  Bc3 {[%clk 0:00:46]} 20. Ng3 {[%clk 0:01:40]}  f6 {[%clk 0:00:43]} 21. Kh1 {[%clk 0:01:35]}  Qf7 {[%clk 0:00:38]} 22. Bb2 {[%clk 0:01:32]}  Bxb2 {[%clk 0:00:36]} 23. Rxb2 {[%clk 0:01:33]}  Bb7 {[%clk 0:00:34]} 24. Rbb1 {[%clk 0:01:28]}  Rfd8 {[%clk 0:00:34]} 25. Rd6 {[%clk 0:01:27]}  Ne7 {[%clk 0:00:29]} 26. Rbd1 {[%clk 0:01:25]}  Nc8 {[%clk 0:00:29]} 27. R6d4 {[%clk 0:01:22]}  a5 {[%clk 0:00:26]} 28. Bb5 {[%clk 0:01:22]}  d6 {[%clk 0:00:23]} 29. f5 {[%clk 0:01:20]}  e5 {[%clk 0:00:23]} 30. Bc4 {[%clk 0:01:16]}  d5 {[%clk 0:00:21]} 31. Rxd5 {[%clk 0:01:17]}  Rxd5 {[%clk 0:00:17]} 32. Rxd5 {[%clk 0:01:11]}  Ne7 {[%clk 0:00:13]} 33. Rd7 {[%clk 0:01:08]} 1-0


[Site "https://www.chess.com"]

[Event "Titled Tuesday Blitz May 10 Late 2022"]
[White "Wagner, Dinara"]
[Black "Pranav, V"]
[WhiteFideId "24157570"]
[BlackFideId "25060783"]
[WhiteElo "2216"]
[BlackElo "2349"]
[Result "0-1"]
[Round "05"]
[TimeControl "180+1"]
[Date "2022.05.11"]
[WhiteClock "0:02:02"]
[BlackClock "0:01:58"]

1. d4 {[%clk 0:02:59]}  Nf6 {[%clk 0:02:58]} 2. c4 {[%clk 0:02:59]}  e6 {[%clk 0:02:57]} 3. Nf3 {[%clk 0:02:59]}  Bb4+ {[%clk 0:02:57]} 4. Bd2 {[%clk 0:02:59]}  a5 {[%clk 0:02:57]} 5. a3 {[%clk 0:02:59]}  Bxd2+ {[%clk 0:02:57]} 6. Nbxd2 {[%clk 0:02:59]}  O-O {[%clk 0:02:55]} 7. g3 {[%clk 0:02:59]}  d6 {[%clk 0:02:55]} 8. Bg2 {[%clk 0:02:55]}  a4 {[%clk 0:02:55]} 9. O-O {[%clk 0:02:53]}  Nc6 {[%clk 0:02:55]} 10. Nb1 {[%clk 0:02:54]}  e5 {[%clk 0:02:54]} 11. Nc3 {[%clk 0:02:53]}  Re8 {[%clk 0:02:32]} 12. d5 {[%clk 0:02:47]}  Ne7 {[%clk 0:02:06]} 13. Nxa4 {[%clk 0:02:43]}  Ng6 {[%clk 0:02:04]} 14. Nc3 {[%clk 0:02:42]}  Bf5 {[%clk 0:02:03]} 15. b4 {[%clk 0:02:39]}  Qd7 {[%clk 0:02:02]} 16. c5 {[%clk 0:02:28]}  Bh3 {[%clk 0:02:01]} 17. c6 {[%clk 0:02:24]}  bxc6 {[%clk 0:02:00]} 18. dxc6 {[%clk 0:02:25]}  Qg4 {[%clk 0:02:01]} 19. Nd5 {[%clk 0:02:03]}  Nxd5 {[%clk 0:01:59]} 20. Qxd5 {[%clk 0:02:02]}  Bxg2 {[%clk 0:01:59]} 21. Kxg2 {[%clk 0:02:02]}  Nf4+ {[%clk 0:01:58]} 0-1


[Site "https://www.chess.com"]

[Event "Titled Tuesday Blitz May 10 Late 2022"]
[White "Dounis, Alexandros"]
[Black "Yuan, Qingyu"]
[WhiteFideId "4213238"]
[BlackFideId "8609772"]
[WhiteElo "2204"]
[BlackElo "2359"]
[Result "0-1"]
[Round "05"]
[TimeControl "180+1"]
[Date "2022.05.10"]
[WhiteClock "0:01:10"]
[BlackClock "0:01:16"]

1. Nf3 {[%clk 0:03:00]}  d5 {[%clk 0:03:00]} 2. g3 {[%clk 0:03:00]}  c5 {[%clk 0:03:00]} 3. Bg2 {[%clk 0:03:00]}  Nc6 {[%clk 0:03:00]} 4. d4 {[%clk 0:03:01]}  Nf6 {[%clk 0:03:00]} 5. O-O {[%clk 0:03:01]}  e6 {[%clk 0:02:58]} 6. c4 {[%clk 0:03:01]}  dxc4 {[%clk 0:02:59]} 7. Ne5 {[%clk 0:03:00]}  Bd7 {[%clk 0:02:58]} 8. Na3 {[%clk 0:02:57]}  cxd4 {[%clk 0:02:54]} 9. Nxc6 {[%clk 0:02:51]}  Bxc6 {[%clk 0:02:52]} 10. Bxc6+ {[%clk 0:02:51]}  bxc6 {[%clk 0:02:52]} 11. Nxc4 {[%clk 0:02:48]}  c5 {[%clk 0:02:30]} 12. e3 {[%clk 0:02:38]}  Be7 {[%clk 0:02:22]} 13. exd4 {[%clk 0:02:33]}  cxd4 {[%clk 0:02:20]} 14. Qa4+ {[%clk 0:02:30]}  Qd7 {[%clk 0:02:15]} 15. Qxd7+ {[%clk 0:02:30]}  Nxd7 {[%clk 0:02:15]} 16. Rd1 {[%clk 0:02:29]}  Bf6 {[%clk 0:02:03]} 17. Nd6+ {[%clk 0:02:19]}  Ke7 {[%clk 0:02:02]} 18. Ne4 {[%clk 0:02:18]}  e5 {[%clk 0:01:58]} 19. Bd2 {[%clk 0:02:16]}  Rab8 {[%clk 0:01:55]} 20. b3 {[%clk 0:02:04]}  Rhc8 {[%clk 0:01:54]} 21. Rac1 {[%clk 0:02:02]}  Ke6 {[%clk 0:01:49]} 22. f4 {[%clk 0:01:49]}  Be7 {[%clk 0:01:49]} 23. fxe5 {[%clk 0:01:47]}  Nxe5 {[%clk 0:01:46]} 24. Rxc8 {[%clk 0:01:42]}  Rxc8 {[%clk 0:01:46]} 25. Bf4 {[%clk 0:01:42]}  f5 {[%clk 0:01:38]} 26. Nf2 {[%clk 0:01:37]}  Bf6 {[%clk 0:01:30]} 27. Kf1 {[%clk 0:01:19]}  Nf3 {[%clk 0:01:22]} 28. Rd3 {[%clk 0:01:14]}  Nxh2+ {[%clk 0:01:17]} 29. Kg2 {[%clk 0:01:14]}  Rc2 {[%clk 0:01:16]} 30. Kxh2 {[%clk 0:01:10]}  Rxf2+ {[%clk 0:01:16]} 0-1


[Site "https://www.chess.com"]

[Event "Titled Tuesday Blitz May 10 Late 2022"]
[White "Dreev, Aleksey"]
[Black "Sadhwani, Raunak"]
[WhiteFideId "4100107"]
[BlackFideId "35093487"]
[WhiteElo "2625"]
[BlackElo "2616"]
[Result "1-0"]
[Round "05"]
[TimeControl "180+1"]
[Date "2022.05.10"]
[WhiteClock "0:00:13"]
[BlackClock "0:00:08"]

1. d4 {[%clk 0:03:00]}  Nf6 {[%clk 0:03:00]} 2. Nf3 {[%clk 0:03:00]}  g6 {[%clk 0:03:00]} 3. g3 {[%clk 0:03:00]}  Bg7 {[%clk 0:03:01]} 4. Bg2 {[%clk 0:03:01]}  O-O {[%clk 0:03:02]} 5. O-O {[%clk 0:03:01]}  d6 {[%clk 0:03:03]} 6. b3 {[%clk 0:03:01]}  b5 {[%clk 0:03:03]} 7. Ne5 {[%clk 0:02:43]}  dxe5 {[%clk 0:02:59]} 8. Bxa8 {[%clk 0:02:42]}  c6 {[%clk 0:02:53]} 9. dxe5 {[%clk 0:02:35]}  Nd5 {[%clk 0:02:44]} 10. a4 {[%clk 0:02:22]}  b4 {[%clk 0:02:35]} 11. a5 {[%clk 0:02:12]}  Nc7 {[%clk 0:02:33]} 12. Be3 {[%clk 0:02:07]}  Nxa8 {[%clk 0:02:03]} 13. Qxd8 {[%clk 0:02:00]}  Rxd8 {[%clk 0:02:04]} 14. Bxa7 {[%clk 0:02:00]}  Bxe5 {[%clk 0:02:02]} 15. Ra4 {[%clk 0:01:42]}  Bh3 {[%clk 0:01:50]} 16. Re1 {[%clk 0:01:25]}  Na6 {[%clk 0:01:49]} 17. c3 {[%clk 0:01:21]}  bxc3 {[%clk 0:01:39]} 18. Rc4 {[%clk 0:01:21]}  Be6 {[%clk 0:01:15]} 19. Rxc6 {[%clk 0:01:20]}  Nb4 {[%clk 0:01:15]} 20. Rxc3 {[%clk 0:01:18]}  Bxc3 {[%clk 0:01:13]} 21. Nxc3 {[%clk 0:01:18]}  Nc6 {[%clk 0:01:13]} 22. Bc5 {[%clk 0:01:16]}  Bxb3 {[%clk 0:00:46]} 23. a6 {[%clk 0:01:07]}  Rc8 {[%clk 0:00:27]} 24. Rb1 {[%clk 0:00:59]}  Be6 {[%clk 0:00:28]} 25. f3 {[%clk 0:00:38]}  Kf8 {[%clk 0:00:19]} 26. Rb7 {[%clk 0:00:26]}  Ke8 {[%clk 0:00:20]} 27. a7 {[%clk 0:00:25]}  Bd7 {[%clk 0:00:17]} 28. Nd5 {[%clk 0:00:20]}  f6 {[%clk 0:00:09]} 29. Bxe7 {[%clk 0:00:16]}  Nxe7 {[%clk 0:00:09]} 30. Nxf6+ {[%clk 0:00:16]}  Kf7 {[%clk 0:00:10]} 31. Nxd7 {[%clk 0:00:16]}  Ke6 {[%clk 0:00:09]} 32. Nb6 {[%clk 0:00:13]}  Rc1+ {[%clk 0:00:08]} 33. Kf2 {[%clk 0:00:13]} 1-0


[Site "https://www.chess.com"]

[Event "Titled Tuesday Blitz May 10 Late 2022"]
[White "Fedoseev, Vladimir"]
[Black "Hansen, Eric"]
[WhiteFideId "24130737"]
[BlackFideId "2606771"]
[WhiteElo "2726"]
[BlackElo "2568"]
[Result "1-0"]
[Round "05"]
[TimeControl "180+1"]
[Date "2022.05.10"]
[WhiteClock "0:00:55"]
[BlackClock "0:00:30"]

1. d4 {[%clk 0:02:33]}  Nf6 {[%clk 0:02:59]} 2. Nf3 {[%clk 0:02:33]}  b6 {[%clk 0:02:59]} 3. c4 {[%clk 0:02:32]}  Bb7 {[%clk 0:02:59]} 4. Nc3 {[%clk 0:02:30]}  e6 {[%clk 0:02:59]} 5. a3 {[%clk 0:02:26]}  d5 {[%clk 0:02:59]} 6. cxd5 {[%clk 0:02:25]}  Nxd5 {[%clk 0:02:59]} 7. Qc2 {[%clk 0:02:24]}  Nd7 {[%clk 0:02:55]} 8. Nxd5 {[%clk 0:02:20]}  Bxd5 {[%clk 0:02:54]} 9. e4 {[%clk 0:02:20]}  Bb7 {[%clk 0:02:53]} 10. Bb5 {[%clk 0:02:10]}  Bd6 {[%clk 0:02:20]} 11. Bg5 {[%clk 0:02:05]}  Qc8 {[%clk 0:02:10]} 12. e5 {[%clk 0:01:40]}  c6 {[%clk 0:02:00]} 13. Bd3 {[%clk 0:01:38]}  Be7 {[%clk 0:01:59]} 14. Bxh7 {[%clk 0:01:27]}  c5 {[%clk 0:01:52]} 15. Be4 {[%clk 0:01:26]}  Bxg5 {[%clk 0:01:22]} 16. Nxg5 {[%clk 0:01:24]}  Rb8 {[%clk 0:01:11]} 17. Bg6 {[%clk 0:01:10]}  cxd4 {[%clk 0:01:01]} 18. Bxf7+ {[%clk 0:01:10]}  Ke7 {[%clk 0:01:00]} 19. Qg6 {[%clk 0:01:10]}  Nxe5 {[%clk 0:00:48]} 20. Qxg7 {[%clk 0:01:08]}  Nxf7 {[%clk 0:00:44]} 21. Qxf7+ {[%clk 0:01:07]}  Kd6 {[%clk 0:00:42]} 22. Qf6 {[%clk 0:01:03]}  Rf8 {[%clk 0:00:30]} 23. Qxd4+ {[%clk 0:01:02]}  Bd5 {[%clk 0:00:31]} 24. O-O {[%clk 0:00:56]}  Qc5 {[%clk 0:00:30]} 25. Ne4+ {[%clk 0:00:55]} 1-0


[Site "https://www.chess.com"]

[Event "Titled Tuesday Blitz May 10 Late 2022"]
[White "Gaisinsky, Adam"]
[Black "Romanchuk, Viktor"]
[WhiteFideId "2620561"]
[BlackFideId "14109271"]
[WhiteElo "1965"]
[BlackElo "2242"]
[Result "1/2-1/2"]
[Round "05"]
[TimeControl "180+1"]
[Date "2022.05.11"]
[WhiteClock "0:00:06"]
[BlackClock "0:00:16"]

1. d4 {[%clk 0:03:00]}  d5 {[%clk 0:02:59]} 2. Nf3 {[%clk 0:03:01]}  Nf6 {[%clk 0:02:58]} 3. Bf4 {[%clk 0:03:01]}  c5 {[%clk 0:02:58]} 4. e3 {[%clk 0:03:02]}  Nc6 {[%clk 0:02:58]} 5. Nbd2 {[%clk 0:03:02]}  Qb6 {[%clk 0:02:57]} 6. dxc5 {[%clk 0:03:03]}  Qxb2 {[%clk 0:02:56]} 7. Rb1 {[%clk 0:03:03]}  Qc3 {[%clk 0:02:57]} 8. Bb5 {[%clk 0:03:04]}  e6 {[%clk 0:02:56]} 9. O-O {[%clk 0:03:04]}  Be7 {[%clk 0:02:55]} 10. e4 {[%clk 0:02:58]}  O-O {[%clk 0:02:39]} 11. Re1 {[%clk 0:02:50]}  dxe4 {[%clk 0:02:23]} 12. Nxe4 {[%clk 0:02:49]}  Nxe4 {[%clk 0:02:21]} 13. Rxe4 {[%clk 0:02:48]}  Qxc5 {[%clk 0:02:08]} 14. Be3 {[%clk 0:02:33]}  Qd5 {[%clk 0:01:43]} 15. Bd3 {[%clk 0:02:15]}  Rd8 {[%clk 0:01:30]} 16. Qe2 {[%clk 0:01:55]}  Qxa2 {[%clk 0:01:24]} 17. Re1 {[%clk 0:01:29]}  Nb4 {[%clk 0:01:17]} 18. Bg5 {[%clk 0:01:18]}  f6 {[%clk 0:00:36]} 19. Bc4 {[%clk 0:00:45]}  Qxc2 {[%clk 0:00:35]} 20. Rxe6 {[%clk 0:00:44]}  Bxe6 {[%clk 0:00:26]} 21. Qxe6+ {[%clk 0:00:43]}  Kh8 {[%clk 0:00:27]} 22. Qxe7 {[%clk 0:00:41]}  Qxc4 {[%clk 0:00:25]} 23. Bxf6 {[%clk 0:00:35]}  gxf6 {[%clk 0:00:19]} 24. Qxf6+ {[%clk 0:00:35]}  Kg8 {[%clk 0:00:19]} 25. Qg5+ {[%clk 0:00:25]}  Kh8 {[%clk 0:00:18]} 26. Qf6+ {[%clk 0:00:25]}  Kg8 {[%clk 0:00:18]} 27. Qg5+ {[%clk 0:00:20]}  Kh8 {[%clk 0:00:16]} 28. Qf6+ {[%clk 0:00:06]} 1/2-1/2


[Site "https://www.chess.com"]

[Event "Titled Tuesday Blitz May 10 Late 2022"]
[White "Gatterer, Florian"]
[Black "Kim, Sergey"]
[WhiteFideId "811688"]
[BlackFideId "13700570"]
[WhiteElo "2218"]
[BlackElo "2473"]
[Result "0-1"]
[Round "05"]
[TimeControl "180+1"]
[Date "2022.05.11"]
[WhiteClock "0:01:04"]
[BlackClock "0:01:47"]

1. Nf3 {[%clk 0:03:00]}  Nf6 {[%clk 0:02:59]} 2. c4 {[%clk 0:02:55]}  g6 {[%clk 0:02:59]} 3. b3 {[%clk 0:02:52]}  Bg7 {[%clk 0:02:59]} 4. Bb2 {[%clk 0:02:53]}  d6 {[%clk 0:03:00]} 5. g3 {[%clk 0:02:53]}  O-O {[%clk 0:03:00]} 6. d4 {[%clk 0:02:53]}  e5 {[%clk 0:02:58]} 7. dxe5 {[%clk 0:02:53]}  Nfd7 {[%clk 0:02:58]} 8. Bg2 {[%clk 0:02:51]}  dxe5 {[%clk 0:02:58]} 9. e4 {[%clk 0:02:44]}  Nc6 {[%clk 0:02:58]} 10. O-O {[%clk 0:02:42]}  Nc5 {[%clk 0:02:58]} 11. Nc3 {[%clk 0:02:41]}  a5 {[%clk 0:02:48]} 12. h3 {[%clk 0:02:37]}  Nd3 {[%clk 0:02:45]} 13. Ba3 {[%clk 0:02:29]}  Ncb4 {[%clk 0:02:43]} 14. Nd5 {[%clk 0:02:28]}  c6 {[%clk 0:02:38]} 15. Nc3 {[%clk 0:02:06]}  Be6 {[%clk 0:02:26]} 16. Ne1 {[%clk 0:02:05]}  Nc5 {[%clk 0:02:23]} 17. Bxb4 {[%clk 0:01:56]}  axb4 {[%clk 0:02:22]} 18. Qxd8 {[%clk 0:01:30]}  Rfxd8 {[%clk 0:02:20]} 19. Na4 {[%clk 0:01:17]}  Nxa4 {[%clk 0:02:16]} 20. bxa4 {[%clk 0:01:17]}  Bxc4 {[%clk 0:02:16]} 21. Nc2 {[%clk 0:01:17]}  Bxf1 {[%clk 0:02:15]} 22. Bxf1 {[%clk 0:01:18]}  Rxa4 {[%clk 0:02:12]} 23. Bc4 {[%clk 0:01:17]}  Bf8 {[%clk 0:02:07]} 24. Bb3 {[%clk 0:01:16]}  Raa8 {[%clk 0:02:07]} 25. Ne3 {[%clk 0:01:17]}  Kg7 {[%clk 0:02:02]} 26. h4 {[%clk 0:01:15]}  f6 {[%clk 0:02:01]} 27. h5 {[%clk 0:01:15]}  Rd3 {[%clk 0:01:52]} 28. Ng2 {[%clk 0:01:04]}  Bc5 {[%clk 0:01:48]} 29. Kf1 {[%clk 0:01:04]}  Rxb3 {[%clk 0:01:47]} 0-1


[Site "https://www.chess.com"]